Workbook

Sheet Sheet1
A1: 黔东南州2023年“特岗计划” 教师招聘考生面试成绩及考试总成绩统计表
A2: 序号 | B2: 姓名 | C2: 面试 准考证号 | D2: 报考县 | E2: 学段 | F2: 学科 | G2: 笔试 成绩 | H2: 笔试成绩所占比例 | I2: 面试 成绩 | J2: 面试成绩所占比例 | K2: 考试总成绩 | L2: 备注
A3: 1 | B3: 杨彩淋 | C3: 2311020103A01 | D3: 凯里市 | E3: 小学 | F3: 语文 | G3: 83 | H3: 50% | I3: 85.67 | J3: 50% | K3: =G3*H3+I3*J3 -> 84.34
A4: 2 | B4: 陈春花 | C4: 2311020103A02 | D4: 凯里市 | E4: 小学 | F4: 语文 | G4: 79 | H4: 50% | I4: 82.17 | J4: 50% | K4: 80.59
A5: 3 | B5: 龙梅 | C5: 2311020103A03 | D5: 凯里市 | E5: 小学 | F5: 语文 | G5: 77 | H5: 50% | I5: 84.5 | J5: 50% | K5: 80.75
A6: 4 | B6: 郭雨雪 | C6: 2311020103A04 | D6: 凯里市 | E6: 小学 | F6: 语文 | G6: 74.5 | H6: 50% | I6: 87.67 | J6: 50% | K6: 81.09
A7: 5 | B7: 杨慧萍 | C7: 2311020103A05 | D7: 凯里市 | E7: 小学 | F7: 语文 | G7: 74.5 | H7: 50% | I7: 84.67 | J7: 50% | K7: 79.59
A8: 6 | B8: 颜倩 | C8: 2311020103A06 | D8: 凯里市 | E8: 小学 | F8: 语文 | G8: 74 | H8: 50% | I8: 86.67 | J8: 50% | K8: 80.34
A9: 7 | B9: 田锦兰 | C9: 2311020103A07 | D9: 凯里市 | E9: 小学 | F9: 语文 | G9: 73.5 | H9: 50% | I9: 84 | J9: 50% | K9: 78.75
A10: 8 | B10: 杨佳洁 | C10: 2311020103A08 | D10: 凯里市 | E10: 小学 | F10: 语文 | G10: 72.5 | H10: 50% | I10: 83.83 | J10: 50% | K10: 78.17
A11: 9 | B11: 姚逢 | C11: 2311020103A09 | D11: 凯里市 | E11: 小学 | F11: 语文 | G11: 72.5 | H11: 50% | I11: 83.33 | J11: 50% | K11: 77.92
A12: 10 | B12: 杨小丽 | C12: 2311020103A10 | D12: 凯里市 | E12: 小学 | F12: 语文 | G12: 72.5 | H12: 50% | I12: 86.83 | J12: 50% | K12: 79.67
A13: 11 | B13: 张菲菲 | C13: 2311020103A11 | D13: 凯里市 | E13: 小学 | F13: 语文 | G13: 72.5 | H13: 50% | I13: 82 | J13: 50% | K13: 77.25
A14: 12 | B14: 张阿英 | C14: 2311020103A12 | D14: 凯里市 | E14: 小学 | F14: 语文 | G14: 72 | H14: 50% | I14: 82 | J14: 50% | K14: 77.00
A15: 13 | B15: 潘世云 | C15: 2311020103A13 | D15: 凯里市 | E15: 小学 | F15: 语文 | G15: 71.5 | H15: 50% | I15: 84.17 | J15: 50% | K15: 77.84
A16: 14 | B16: 龙继英 | C16: 2311020103A14 | D16: 凯里市 | E16: 小学 | F16: 语文 | G16: 71.5 | H16: 50% | I16: 82.33 | J16: 50% | K16: 76.92
A17: 15 | B17: 王小燕 | C17: 2311020103A15 | D17: 凯里市 | E17: 小学 | F17: 语文 | G17: 71.5 | H17: 50% | I17: 82.5 | J17: 50% | K17: 77.00
A18: 16 | B18: 王方钰 | C18: 2311020103A16 | D18: 凯里市 | E18: 小学 | F18: 语文 | G18: 71 | H18: 50% | I18: 83.67 | J18: 50% | K18: 77.34
A19: 17 | B19: 金燕 | C19: 2311020103A17 | D19: 凯里市 | E19: 小学 | F19: 语文 | G19: 71 | H19: 50% | I19: 85.17 | J19: 50% | K19: 78.09
A20: 18 | B20: 欧艺 | C20: 2311020103A18 | D20: 凯里市 | E20: 小学 | F20: 语文 | G20: 70.5 | H20: 50% | I20: 75.85 | J20: 50% | K20: 73.18
A21: 19 | B21: 谢琴 | C21: 2311020103A19 | D21: 凯里市 | E21: 小学 | F21: 语文 | G21: 70.5 | H21: 50% | I21: 87.17 | J21: 50% | K21: 78.84
A22: 20 | B22: 杨兰 | C22: 2311020103A20 | D22: 凯里市 | E22: 小学 | F22: 语文 | G22: 70.5 | H22: 50% | I22: 81.33 | J22: 50% | K22: 75.92
A23: 21 | B23: 熊甜甜 | C23: 2311020103A21 | D23: 凯里市 | E23: 小学 | F23: 语文 | G23: 70.5 | H23: 50% | I23: 82.5 | J23: 50% | K23: 76.50
A24: 22 | B24: 龙秀英 | C24: 2311020103A22 | D24: 凯里市 | E24: 小学 | F24: 语文 | G24: 70.5 | H24: 50% | I24: 85 | J24: 50% | K24: 77.75
A25: 23 | B25: 杨珍梅 | C25: 2311020103A23 | D25: 凯里市 | E25: 小学 | F25: 语文 | G25: 70 | H25: 50% | I25: 85.17 | J25: 50% | K25: 77.59
A26: 24 | B26: 朱武琼 | C26: 2311020103A24 | D26: 凯里市 | E26: 小学 | F26: 语文 | G26: 70 | H26: 50% | I26: 82.33 | J26: 50% | K26: 76.17
A27: 25 | B27: 杨小秋 | C27: 2311020103A25 | D27: 凯里市 | E27: 小学 | F27: 语文 | G27: 70 | H27: 50% | I27: 88.67 | J27: 50% | K27: 79.34
A28: 26 | B28: 刘妍 | C28: 2311020103A26 | D28: 凯里市 | E28: 小学 | F28: 语文 | G28: 70 | H28: 50% | I28: 86.5 | J28: 50% | K28: 78.25
A29: 27 | B29: 龚建秀 | C29: 2311020103A27 | D29: 凯里市 | E29: 小学 | F29: 语文 | G29: 70 | H29: 50% | I29: 81.5 | J29: 50% | K29: 75.75
A30: 28 | B30: 吴昭秀 | C30: 2311020103A28 | D30: 凯里市 | E30: 小学 | F30: 语文 | G30: 69.5 | H30: 50% | I30: 86.17 | J30: 50% | K30: 77.84
A31: 29 | B31: 秦余龙 | C31: 2311020103A29 | D31: 凯里市 | E31: 小学 | F31: 语文 | G31: 69.5 | H31: 50% | I31: 85.83 | J31: 50% | K31: 77.67
A32: 30 | B32: 杨春鹃 | C32: 2311020103A30 | D32: 凯里市 | E32: 小学 | F32: 语文 | G32: 69.5 | H32: 50% | I32: 83.33 | J32: 50% | K32: 76.42
A33: 31 | B33: 田啟菲 | C33: 2311020103A31 | D33: 凯里市 | E33: 小学 | F33: 语文 | G33: 69.5 | H33: 50% | I33: 82.83 | J33: 50% | K33: 76.17
A34: 32 | B34: 范钟芳 | C34: 2311020103A32 | D34: 凯里市 | E34: 小学 | F34: 语文 | G34: 69.5 | H34: 50% | I34: 79.83 | J34: 50% | K34: 74.67
A35: 33 | B35: 舒月 | C35: 2311020103A33 | D35: 凯里市 | E35: 小学 | F35: 语文 | G35: 69.5 | H35: 50% | I35: 83.17 | J35: 50% | K35: 76.34
A36: 34 | B36: 欧阳文娟 | C36: 2311020103A34 | D36: 凯里市 | E36: 小学 | F36: 语文 | G36: 69 | H36: 50% | I36: 74.67 | J36: 50% | K36: 71.84
A37: 35 | B37: 杨裳美 | C37: 2311020103A35 | D37: 凯里市 | E37: 小学 | F37: 语文 | G37: 68.5 | H37: 50% | I37: 82.33 | J37: 50% | K37: 75.42
A38: 36 | B38: 蒙园园 | C38: 2311020103A36 | D38: 凯里市 | E38: 小学 | F38: 语文 | G38: 68.5 | H38: 50% | I38: 85.5 | J38: 50% | K38: 77.00
A39: 37 | B39: 潘新兰 | C39: 2311020103A37 | D39: 凯里市 | E39: 小学 | F39: 语文 | G39: 68.5 | H39: 50% | I39: 83.67 | J39: 50% | K39: 76.09
A40: 38 | B40: 孙健芬 | C40: 2311020103A38 | D40: 凯里市 | E40: 小学 | F40: 语文 | G40: 68.5 | H40: 50% | I40: 82.5 | J40: 50% | K40: 75.50
A41: 39 | B41: 龙孟成 | C41: 2311020103A39 | D41: 凯里市 | E41: 小学 | F41: 语文 | G41: 68.5 | H41: 50% | I41: 81.5 | J41: 50% | K41: 75.00
A42: 40 | B42: 张格荣 | C42: 2311020103A40 | D42: 凯里市 | E42: 小学 | F42: 语文 | G42: 68 | H42: 50% | I42: 83.5 | J42: 50% | K42: 75.75
A43: 41 | B43: 保雨萌 | C43: 2311020103A41 | D43: 凯里市 | E43: 小学 | F43: 语文 | G43: 68 | H43: 50% | I43: 82.83 | J43: 50% | K43: 75.42
A44: 42 | B44: 蒋青卓 | C44: 2311020103A42 | D44: 凯里市 | E44: 小学 | F44: 语文 | G44: 68 | H44: 50% | I44: 82 | J44: 50% | K44: 75.00
A45: 43 | B45: 刘玲君 | C45: 2311020103A43 | D45: 凯里市 | E45: 小学 | F45: 语文 | G45: 67.5 | H45: 50% | I45: 86.17 | J45: 50% | K45: 76.84
A46: 44 | B46: 彭学琴 | C46: 2311020103A44 | D46: 凯里市 | E46: 小学 | F46: 语文 | G46: 67.5 | H46: 50% | I46: 78.83 | J46: 50% | K46: 73.17
A47: 45 | B47: 任田婷 | C47: 2311020103A45 | D47: 凯里市 | E47: 小学 | F47: 语文 | G47: 67.5 | H47: 50% | I47: 86.17 | J47: 50% | K47: 76.84
A48: 46 | B48: 补宇霞 | C48: 2311020103A46 | D48: 凯里市 | E48: 小学 | F48: 语文 | G48: 67 | H48: 50% | I48: 85.83 | J48: 50% | K48: 76.42
A49: 47 | B49: 金碧叶 | C49: 2311020103A47 | D49: 凯里市 | E49: 小学 | F49: 语文 | G49: 67 | H49: 50% | I49: 83.83 | J49: 50% | K49: 75.42
A50: 48 | B50: 吴姜高 | C50: 2311020103A48 | D50: 凯里市 | E50: 小学 | F50: 语文 | G50: 67 | H50: 50% | I50: 85.17 | J50: 50% | K50: 76.09
A51: 49 | B51: 蒋甜甜 | C51: 2311020103A49 | D51: 凯里市 | E51: 小学 | F51: 语文 | G51: 67 | H51: 50% | I51: 81 | J51: 50% | K51: 74.00
A52: 50 | B52: 吴芬 | C52: 2311020103A50 | D52: 凯里市 | E52: 小学 | F52: 语文 | G52: 67 | H52: 50% | I52: 84.5 | J52: 50% | K52: 75.75
A53: 51 | B53: 陈顶琼 | C53: 2311020103A51 | D53: 凯里市 | E53: 小学 | F53: 语文 | G53: 67 | H53: 50% | I53: 87 | J53: 50% | K53: 77.00
A54: 52 | B54: 李光桃 | C54: 2311020213A01 | D54: 凯里市 | E54: 小学 | F54: 数学 | G54: 91.5 | H54: 50% | I54: 83.67 | J54: 50% | K54: 87.59
A55: 53 | B55: 徐小芳 | C55: 2311020213A02 | D55: 凯里市 | E55: 小学 | F55: 数学 | G55: 91 | H55: 50% | I55: 89.33 | J55: 50% | K55: 90.17
A56: 54 | B56: 舒泽民 | C56: 2311020213A03 | D56: 凯里市 | E56: 小学 | F56: 数学 | G56: 90 | H56: 50% | I56: 84.67 | J56: 50% | K56: 87.34
A57: 55 | B57: 苏荣欣 | C57: 2311020213A04 | D57: 凯里市 | E57: 小学 | F57: 数学 | G57: 89.5 | H57: 50% | I57: 91 | J57: 50% | K57: 90.25
A58: 56 | B58: 柳海琼 | C58: 2311020213A05 | D58: 凯里市 | E58: 小学 | F58: 数学 | G58: 87 | H58: 50% | I58: 87.67 | J58: 50% | K58: 87.34
A59: 57 | B59: 周晓红 | C59: 2311020213A06 | D59: 凯里市 | E59: 小学 | F59: 数学 | G59: 81 | H59: 50% | I59: 91.33 | J59: 50% | K59: 86.17
A60: 58 | B60: 孙卯寅 | C60: 2311020213A07 | D60: 凯里市 | E60: 小学 | F60: 数学 | G60: 79.5 | H60: 50% | I60: 90.67 | J60: 50% | K60: 85.09
A61: 59 | B61: 李雨田 | C61: 2311020213A08 | D61: 凯里市 | E61: 小学 | F61: 数学 | G61: 77 | H61: 50% | I61: 0 | J61: 50% | K61: 38.50 | L61: 面试缺考
A62: 60 | B62: 易准 | C62: 2311020213A09 | D62: 凯里市 | E62: 小学 | F62: 数学 | G62: 76 | H62: 50% | I62: 0 | J62: 50% | K62: 38.00 | L62: 面试缺考
A63: 61 | B63: 杨旭琴 | C63: 2311020213A10 | D63: 凯里市 | E63: 小学 | F63: 数学 | G63: 74.5 | H63: 50% | I63: 87.67 | J63: 50% | K63: 81.09
A64: 62 | B64: 张仁花 | C64: 2311020213A11 | D64: 凯里市 | E64: 小学 | F64: 数学 | G64: 71 | H64: 50% | I64: 88.33 | J64: 50% | K64: 79.67
A65: 63 | B65: 杨果 | C65: 2311020213A12 | D65: 凯里市 | E65: 小学 | F65: 数学 | G65: 69.5 | H65: 50% | I65: 82.33 | J65: 50% | K65: 75.92
A66: 64 | B66: 石微微 | C66: 2311020213A13 | D66: 凯里市 | E66: 小学 | F66: 数学 | G66: 68.5 | H66: 50% | I66: 0 | J66: 50% | K66: 34.25 | L66: 面试缺考
A67: 65 | B67: 杨鹏 | C67: 2311020213A14 | D67: 凯里市 | E67: 小学 | F67: 数学 | G67: 67 | H67: 50% | I67: 77 | J67: 50% | K67: =G67*H67+I67*J67 -> 72.00
A68: 66 | B68: 张文英 | C68: 2311020213A15 | D68: 凯里市 | E68: 小学 | F68: 数学 | G68: 64.5 | H68: 50% | I68: 85 | J68: 50% | K68: 74.75
A69: 67 | B69: 杨通慧 | C69: 2311020213A16 | D69: 凯里市 | E69: 小学 | F69: 数学 | G69: 64.5 | H69: 50% | I69: 79.33 | J69: 50% | K69: 71.92
A70: 68 | B70: 杨小琴 | C70: 2311020213A17 | D70: 凯里市 | E70: 小学 | F70: 数学 | G70: 64.5 | H70: 50% | I70: 87.33 | J70: 50% | K70: 75.92
A71: 69 | B71: 周玉美 | C71: 2311020213A18 | D71: 凯里市 | E71: 小学 | F71: 数学 | G71: 62.5 | H71: 50% | I71: 83 | J71: 50% | K71: 72.75
A72: 70 | B72: 杨秀美 | C72: 2311020213A19 | D72: 凯里市 | E72: 小学 | F72: 数学 | G72: 58 | H72: 50% | I72: 85.33 | J72: 50% | K72: 71.67
A73: 71 | B73: 朱佳茹 | C73: 2311020213A20 | D73: 凯里市 | E73: 小学 | F73: 数学 | G73: 57 | H73: 50% | I73: 0 | J73: 50% | K73: 28.50 | L73: 面试缺考
A74: 72 | B74: 龙世学 | C74: 2311020213A21 | D74: 凯里市 | E74: 小学 | F74: 数学 | G74: 54.5 | H74: 50% | I74: 0 | J74: 50% | K74: 27.25 | L74: 面试缺考
A75: 73 | B75: 尹瑞敏 | C75: 2311020213A22 | D75: 凯里市 | E75: 小学 | F75: 数学 | G75: 51.5 | H75: 50% | I75: 86.67 | J75: 50% | K75: 69.09
A76: 74 | B76: 赵庭慧 | C76: 2311020213A23 | D76: 凯里市 | E76: 小学 | F76: 数学 | G76: 50.5 | H76: 50% | I76: 0 | J76: 50% | K76: 25.25 | L76: 面试缺考
A77: 75 | B77: 赵漓 | C77: 2311020213A24 | D77: 凯里市 | E77: 小学 | F77: 数学 | G77: 50 | H77: 50% | I77: 92 | J77: 50% | K77: 71.00
A78: 76 | B78: 周尧禹 | C78: 2311020320B31 | D78: 凯里市 | E78: 小学 | F78: 英语 | G78: 78 | H78: 50% | I78: 87.33 | J78: 50% | K78: 82.67
A79: 77 | B79: 刘承倩 | C79: 2311020320B32 | D79: 凯里市 | E79: 小学 | F79: 英语 | G79: 77 | H79: 50% | I79: 87.83 | J79: 50% | K79: 82.42
A80: 78 | B80: 杨美秀 | C80: 2311020320B33 | D80: 凯里市 | E80: 小学 | F80: 英语 | G80: 77 | H80: 50% | I80: 87.17 | J80: 50% | K80: 82.09
A81: 79 | B81: 唐婷婷 | C81: 2311020320B34 | D81: 凯里市 | E81: 小学 | F81: 英语 | G81: 76.5 | H81: 50% | I81: 90.67 | J81: 50% | K81: 83.59
A82: 80 | B82: 姜广安 | C82: 2311020320B35 | D82: 凯里市 | E82: 小学 | F82: 英语 | G82: 76 | H82: 50% | I82: 87 | J82: 50% | K82: 81.50
A83: 81 | B83: 秦静 | C83: 2311020320B36 | D83: 凯里市 | E83: 小学 | F83: 英语 | G83: 74 | H83: 50% | I83: 87.67 | J83: 50% | K83: 80.84
A84: 82 | B84: 唐春燕 | C84: 2311020320B37 | D84: 凯里市 | E84: 小学 | F84: 英语 | G84: 74 | H84: 50% | I84: 87.33 | J84: 50% | K84: 80.67
A85: 83 | B85: 谭静 | C85: 2311020320B38 | D85: 凯里市 | E85: 小学 | F85: 英语 | G85: 73.5 | H85: 50% | I85: 91 | J85: 50% | K85: 82.25
A86: 84 | B86: 付红艳 | C86: 2311020320B39 | D86: 凯里市 | E86: 小学 | F86: 英语 | G86: 73 | H86: 50% | I86: 89.67 | J86: 50% | K86: 81.34
A87: 85 | B87: 吴越 | C87: 2311020320B40 | D87: 凯里市 | E87: 小学 | F87: 英语 | G87: 73 | H87: 50% | I87: 89.17 | J87: 50% | K87: 81.09
A88: 86 | B88: 潘先美 | C88: 2311020320B41 | D88: 凯里市 | E88: 小学 | F88: 英语 | G88: 72.5 | H88: 50% | I88: 88.33 | J88: 50% | K88: 80.42
A89: 87 | B89: 李群 | C89: 2311020320B42 | D89: 凯里市 | E89: 小学 | F89: 英语 | G89: 71.5 | H89: 50% | I89: 0 | J89: 50% | K89: 35.75 | L89: 面试缺考
A90: 88 | B90: 李学梅 | C90: 2311020320B43 | D90: 凯里市 | E90: 小学 | F90: 英语 | G90: 71 | H90: 50% | I90: 90 | J90: 50% | K90: 80.50
A91: 89 | B91: 杨智丽 | C91: 2311020320B44 | D91: 凯里市 | E91: 小学 | F91: 英语 | G91: 71 | H91: 50% | I91: 90.33 | J91: 50% | K91: 80.67
A92: 90 | B92: 潘辅英 | C92: 2311020320B45 | D92: 凯里市 | E92: 小学 | F92: 英语 | G92: 70.5 | H92: 50% | I92: 89.83 | J92: 50% | K92: 80.17
A93: 91 | B93: 孙羽蔓 | C93: 2311020320B46 | D93: 凯里市 | E93: 小学 | F93: 英语 | G93: 70.5 | H93: 50% | I93: 90 | J93: 50% | K93: 80.25
A94: 92 | B94: 石金钗 | C94: 2311020320B47 | D94: 凯里市 | E94: 小学 | F94: 英语 | G94: 70 | H94: 50% | I94: 87.83 | J94: 50% | K94: 78.92
A95: 93 | B95: 陈瑶 | C95: 2311020320B48 | D95: 凯里市 | E95: 小学 | F95: 英语 | G95: 70 | H95: 50% | I95: 84.83 | J95: 50% | K95: 77.42
A96: 94 | B96: 王倩 | C96: 2311020320B49 | D96: 凯里市 | E96: 小学 | F96: 英语 | G96: 70 | H96: 50% | I96: 88.33 | J96: 50% | K96: 79.17
A97: 95 | B97: 何京津 | C97: 2311020320B50 | D97: 凯里市 | E97: 小学 | F97: 英语 | G97: 69 | H97: 50% | I97: 88.67 | J97: 50% | K97: 78.84
A98: 96 | B98: 杨兰芬 | C98: 2311020320B51 | D98: 凯里市 | E98: 小学 | F98: 英语 | G98: 68.5 | H98: 50% | I98: 87.33 | J98: 50% | K98: 77.92
A99: 97 | B99: 杨艳芳 | C99: 2311020320B52 | D99: 凯里市 | E99: 小学 | F99: 英语 | G99: 68.5 | H99: 50% | I99: 89.67 | J99: 50% | K99: 79.09
A100: 98 | B100: 张慧琴 | C100: 2311020320B53 | D100: 凯里市 | E100: 小学 | F100: 英语 | G100: 68.5 | H100: 50% | I100: 87.67 | J100: 50% | K100: 78.09
A101: 99 | B101: 王明云 | C101: 2311020930B29 | D101: 凯里市 | E101: 小学 | F101: 道德与法治 | G101: 76 | H101: 50% | I101: 83.67 | J101: 50% | K101: 79.84
A102: 100 | B102: 潘平霞 | C102: 2311020930B30 | D102: 凯里市 | E102: 小学 | F102: 道德与法治 | G102: 62 | H102: 50% | I102: 84.17 | J102: 50% | K102: 73.09
A103: 101 | B103: 杨兰 | C103: 2311020930B31 | D103: 凯里市 | E103: 小学 | F103: 道德与法治 | G103: 62 | H103: 50% | I103: 85.33 | J103: 50% | K103: 73.67
A104: 102 | B104: 金灵 | C104: 2311020930B32 | D104: 凯里市 | E104: 小学 | F104: 道德与法治 | G104: 59.5 | H104: 50% | I104: 84.67 | J104: 50% | K104: 72.09
A105: 103 | B105: 杨美艳 | C105: 2311020930B33 | D105: 凯里市 | E105: 小学 | F105: 道德与法治 | G105: 56 | H105: 50% | I105: 0 | J105: 50% | K105: 28.00 | L105: 面试缺考
A106: 104 | B106: 洪程 | C106: 2311020930B34 | D106: 凯里市 | E106: 小学 | F106: 道德与法治 | G106: 54 | H106: 50% | I106: 84.33 | J106: 50% | K106: 69.17
A107: 105 | B107: 潘文霞 | C107: 2311021034B32 | D107: 凯里市 | E107: 小学 | F107: 音乐 | G107: 73 | H107: 50% | I107: 84.63 | J107: 50% | K107: 78.82
A108: 106 | B108: 李本山 | C108: 2311021034B33 | D108: 凯里市 | E108: 小学 | F108: 音乐 | G108: 71 | H108: 50% | I108: 89.38 | J108: 50% | K108: 80.19
A109: 107 | B109: 彭召旺 | C109: 2311021034B34 | D109: 凯里市 | E109: 小学 | F109: 音乐 | G109: 67 | H109: 50% | I109: 84.37 | J109: 50% | K109: 75.69
A110: 108 | B110: 石婷 | C110: 2311021034B35 | D110: 凯里市 | E110: 小学 | F110: 音乐 | G110: 63.5 | H110: 50% | I110: 85.19 | J110: 50% | K110: 74.35
A111: 109 | B111: 潘运兰 | C111: 2311021034B36 | D111: 凯里市 | E111: 小学 | F111: 音乐 | G111: 59.5 | H111: 50% | I111: 88.09 | J111: 50% | K111: 73.80
A112: 110 | B112: 郭惠阳 | C112: 2311021034B37 | D112: 凯里市 | E112: 小学 | F112: 音乐 | G112: 58 | H112: 50% | I112: 83.64 | J112: 50% | K112: 70.82
A113: 111 | B113: 张文梅 | C113: 2311021138A01 | D113: 凯里市 | E113: 小学 | F113: 体育 | G113: 73 | H113: 50% | I113: 86.33 | J113: 50% | K113: 79.67
A114: 112 | B114: 潘世美 | C114: 2311021138A02 | D114: 凯里市 | E114: 小学 | F114: 体育 | G114: 65.5 | H114: 50% | I114: 85.63 | J114: 50% | K114: 75.57
A115: 113 | B115: 万兴隆 | C115: 2311021138A03 | D115: 凯里市 | E115: 小学 | F115: 体育 | G115: 64.5 | H115: 50% | I115: 85.24 | J115: 50% | K115: 74.87
A116: 114 | B116: 顾光欢 | C116: 2311021138A04 | D116: 凯里市 | E116: 小学 | F116: 体育 | G116: 63 | H116: 50% | I116: 86.5 | J116: 50% | K116: 74.75
A117: 115 | B117: 吴兴妹 | C117: 2311021138A05 | D117: 凯里市 | E117: 小学 | F117: 体育 | G117: 61 | H117: 50% | I117: 82.83 | J117: 50% | K117: 71.92
A118: 116 | B118: 丁衡艳 | C118: 2311021138A06 | D118: 凯里市 | E118: 小学 | F118: 体育 | G118: 59 | H118: 50% | I118: 87.82 | J118: 50% | K118: 73.41
A119: 117 | B119: 祝艳会 | C119: 2311021241B33 | D119: 凯里市 | E119: 小学 | F119: 美术 | G119: 86.5 | H119: 50% | I119: 90.57 | J119: 50% | K119: 88.54
A120: 118 | B120: 李永英 | C120: 2311021241B34 | D120: 凯里市 | E120: 小学 | F120: 美术 | G120: 78.5 | H120: 50% | I120: 88.25 | J120: 50% | K120: 83.38
A121: 119 | B121: 杨雪淋 | C121: 2311021241B35 | D121: 凯里市 | E121: 小学 | F121: 美术 | G121: 73.5 | H121: 50% | I121: 90.59 | J121: 50% | K121: 82.05
A122: 120 | B122: 张艺云 | C122: 2311021241B36 | D122: 凯里市 | E122: 小学 | F122: 美术 | G122: 72.5 | H122: 50% | I122: 91.14 | J122: 50% | K122: 81.82
A123: 121 | B123: 吴梦然 | C123: 2311021241B37 | D123: 凯里市 | E123: 小学 | F123: 美术 | G123: 71.5 | H123: 50% | I123: 89.65 | J123: 50% | K123: 80.58
A124: 122 | B124: 邰再美 | C124: 2311021241B38 | D124: 凯里市 | E124: 小学 | F124: 美术 | G124: 71.5 | H124: 50% | I124: 89.45 | J124: 50% | K124: 80.48
A125: 123 | B125: 杨迪 | C125: 2311021241B39 | D125: 凯里市 | E125: 小学 | F125: 美术 | G125: 70.5 | H125: 50% | I125: 89.52 | J125: 50% | K125: 80.01
A126: 124 | B126: 罗婷 | C126: 2311021241B40 | D126: 凯里市 | E126: 小学 | F126: 美术 | G126: 70 | H126: 50% | I126: 91.79 | J126: 50% | K126: 80.90
A127: 125 | B127: 秦梅 | C127: 2311021241B41 | D127: 凯里市 | E127: 小学 | F127: 美术 | G127: 69.5 | H127: 50% | I127: 90.51 | J127: 50% | K127: 80.01
A128: 126 | B128: 李娜 | C128: 2311021241B42 | D128: 凯里市 | E128: 小学 | F128: 美术 | G128: 69.5 | H128: 50% | I128: 90.13 | J128: 50% | K128: 79.82
A129: 127 | B129: 姚红艳 | C129: 2311021241B43 | D129: 凯里市 | E129: 小学 | F129: 美术 | G129: 69.5 | H129: 50% | I129: 91.16 | J129: 50% | K129: 80.33
A130: 128 | B130: 李绍棚 | C130: 2311021344B29 | D130: 凯里市 | E130: 小学 | F130: 信息科技 | G130: 76.5 | H130: 50% | I130: 84.07 | J130: 50% | K130: 80.29
A131: 129 | B131: 杨蕊 | C131: 2311021344B30 | D131: 凯里市 | E131: 小学 | F131: 信息科技 | G131: 72 | H131: 50% | I131: 81.66 | J131: 50% | K131: =G131*H131+I131*J131 -> 76.83
A132: 130 | B132: 杨秋妺 | C132: 2311021344B31 | D132: 凯里市 | E132: 小学 | F132: 信息科技 | G132: 70 | H132: 50% | I132: 83.61 | J132: 50% | K132: 76.81
A133: 131 | B133: 吴雯馨 | C133: 2311021446A01 | D133: 凯里市 | E133: 小学 | F133: 科学 | G133: 53.5 | H133: 50% | I133: 80.17 | J133: 50% | K133: 66.84
A134: 132 | B134: 冯余念 | C134: 2311021446A02 | D134: 凯里市 | E134: 小学 | F134: 科学 | G134: 53.5 | H134: 50% | I134: 85.8 | J134: 50% | K134: 69.65
A135: 133 | B135: 刘芬 | C135: 2311021446A03 | D135: 凯里市 | E135: 小学 | F135: 科学 | G135: 52 | H135: 50% | I135: 80 | J135: 50% | K135: 66.00
A136: 134 | B136: 陈芳 | C136: 2311021446A04 | D136: 凯里市 | E136: 小学 | F136: 科学 | G136: 50 | H136: 50% | I136: 84.57 | J136: 50% | K136: 67.29
A137: 135 | B137: 张玉涵 | C137: 2311021446A05 | D137: 凯里市 | E137: 小学 | F137: 科学 | G137: 49 | H137: 50% | I137: 85.4 | J137: 50% | K137: 67.20
A138: 136 | B138: 朱艳红 | C138: 2311021446A06 | D138: 凯里市 | E138: 小学 | F138: 科学 | G138: 48.5 | H138: 50% | I138: 84.43 | J138: 50% | K138: 66.47
A139: 137 | B139: 谭芳 | C139: 2311021446A07 | D139: 凯里市 | E139: 小学 | F139: 科学 | G139: 48 | H139: 50% | I139: 82.23 | J139: 50% | K139: 65.12
A140: 138 | B140: 何开雯 | C140: 2311021446A08 | D140: 凯里市 | E140: 小学 | F140: 科学 | G140: 47.5 | H140: 50% | I140: 82.33 | J140: 50% | K140: 64.92
A141: 139 | B141: 王清莲 | C141: 2311021446A09 | D141: 凯里市 | E141: 小学 | F141: 科学 | G141: 47.5 | H141: 50% | I141: 79.7 | J141: 50% | K141: 63.60
A142: 140 | B142: 陈艳丽 | C142: 2311021446A10 | D142: 凯里市 | E142: 小学 | F142: 科学 | G142: 46.5 | H142: 50% | I142: 83.27 | J142: 50% | K142: 64.89
A143: 141 | B143: 刘春英 | C143: 2311021446A11 | D143: 凯里市 | E143: 小学 | F143: 科学 | G143: 46 | H143: 50% | I143: 0 | J143: 50% | K143: 23.00 | L143: 面试缺考
A144: 142 | B144: 杨英珍 | C144: 2311021446A12 | D144: 凯里市 | E144: 小学 | F144: 科学 | G144: 45 | H144: 50% | I144: 82.8 | J144: 50% | K144: 63.90
A145: 143 | B145: 陶光翠 | C145: 2311021547A01 | D145: 凯里市 | E145: 小学 | F145: 心理健康 | G145: 84 | H145: 50% | I145: 87.44 | J145: 50% | K145: 85.72
A146: 144 | B146: 李冰雁 | C146: 2311021547A02 | D146: 凯里市 | E146: 小学 | F146: 心理健康 | G146: 78 | H146: 50% | I146: 82.62 | J146: 50% | K146: 80.31
A147: 145 | B147: 梁易超 | C147: 2311021547A03 | D147: 凯里市 | E147: 小学 | F147: 心理健康 | G147: 77.5 | H147: 50% | I147: 80.81 | J147: 50% | K147: 79.16
A148: 146 | B148: 王茜 | C148: 2311021547A04 | D148: 凯里市 | E148: 小学 | F148: 心理健康 | G148: 75.5 | H148: 50% | I148: 90.59 | J148: 50% | K148: 83.05
A149: 147 | B149: 万祖梅 | C149: 2311021547A05 | D149: 凯里市 | E149: 小学 | F149: 心理健康 | G149: 75 | H149: 50% | I149: 84.34 | J149: 50% | K149: 79.67
A150: 148 | B150: 田孟仙 | C150: 2311021547A06 | D150: 凯里市 | E150: 小学 | F150: 心理健康 | G150: 73 | H150: 50% | I150: 85.15 | J150: 50% | K150: 79.08
A151: 149 | B151: 修静贤 | C151: 2311021547A07 | D151: 凯里市 | E151: 小学 | F151: 心理健康 | G151: 72.5 | H151: 50% | I151: 84.8 | J151: 50% | K151: 78.65
A152: 150 | B152: 谭琦 | C152: 2311021547A08 | D152: 凯里市 | E152: 小学 | F152: 心理健康 | G152: 71 | H152: 50% | I152: 0 | J152: 50% | K152: 35.50 | L152: 面试缺考
A153: 151 | B153: 陈小珍 | C153: 2311021547A09 | D153: 凯里市 | E153: 小学 | F153: 心理健康 | G153: 70.5 | H153: 50% | I153: 80.63 | J153: 50% | K153: 75.57
A154: 152 | B154: 肖艳清 | C154: 2311021547A10 | D154: 凯里市 | E154: 小学 | F154: 心理健康 | G154: 70 | H154: 50% | I154: 85.59 | J154: 50% | K154: 77.80
A155: 153 | B155: 滕依依 | C155: 2311021547A11 | D155: 凯里市 | E155: 小学 | F155: 心理健康 | G155: 70 | H155: 50% | I155: 85.08 | J155: 50% | K155: 77.54
A156: 154 | B156: 吴阿芳 | C156: 2311021547A12 | D156: 凯里市 | E156: 小学 | F156: 心理健康 | G156: 68 | H156: 50% | I156: 56.17 | J156: 50% | K156: 62.09
A157: 155 | B157: 雷圆 | C157: 2311021547A13 | D157: 凯里市 | E157: 小学 | F157: 心理健康 | G157: 67.5 | H157: 50% | I157: 89.19 | J157: 50% | K157: 78.35
A158: 156 | B158: 杨雯 | C158: 2311021547A14 | D158: 凯里市 | E158: 小学 | F158: 心理健康 | G158: 67 | H158: 50% | I158: 0 | J158: 50% | K158: 33.50 | L158: 面试缺考
A159: 157 | B159: 王春锦 | C159: 2311021547A15 | D159: 凯里市 | E159: 小学 | F159: 心理健康 | G159: 64 | H159: 50% | I159: 77.57 | J159: 50% | K159: 70.79
A160: 158 | B160: 罗来佩 | C160: 2311030108B26 | D160: 凯里市 | E160: 初中 | F160: 语文 | G160: 73.5 | H160: 50% | I160: 87 | J160: 50% | K160: 80.25
A161: 159 | B161: 龙英柳 | C161: 2311030108B27 | D161: 凯里市 | E161: 初中 | F161: 语文 | G161: 73 | H161: 50% | I161: 84.33 | J161: 50% | K161: 78.67
A162: 160 | B162: 邰璇 | C162: 2311030108B28 | D162: 凯里市 | E162: 初中 | F162: 语文 | G162: 71.5 | H162: 50% | I162: 87.67 | J162: 50% | K162: 79.59
A163: 161 | B163: 田秋红 | C163: 2311030108B29 | D163: 凯里市 | E163: 初中 | F163: 语文 | G163: 71.5 | H163: 50% | I163: 86.33 | J163: 50% | K163: 78.92
A164: 162 | B164: 杨玉凤 | C164: 2311030108B30 | D164: 凯里市 | E164: 初中 | F164: 语文 | G164: 71 | H164: 50% | I164: 0 | J164: 50% | K164: 35.50 | L164: 面试缺考
A165: 163 | B165: 赵景杏 | C165: 2311030108B31 | D165: 凯里市 | E165: 初中 | F165: 语文 | G165: 71 | H165: 50% | I165: 84.67 | J165: 50% | K165: 77.84
A166: 164 | B166: 杨晶晶 | C166: 2311030108B32 | D166: 凯里市 | E166: 初中 | F166: 语文 | G166: 70.5 | H166: 50% | I166: 84.67 | J166: 50% | K166: 77.59
A167: 165 | B167: 李春梅 | C167: 2311030108B33 | D167: 凯里市 | E167: 初中 | F167: 语文 | G167: 70 | H167: 50% | I167: 85.67 | J167: 50% | K167: 77.84
A168: 166 | B168: 黄梦雪 | C168: 2311030108B34 | D168: 凯里市 | E168: 初中 | F168: 语文 | G168: 70 | H168: 50% | I168: 85.33 | J168: 50% | K168: 77.67
A169: 167 | B169: 杨家明 | C169: 2311030108B35 | D169: 凯里市 | E169: 初中 | F169: 语文 | G169: 69.5 | H169: 50% | I169: 86.33 | J169: 50% | K169: 77.92
A170: 168 | B170: 潘美美 | C170: 2311030108B36 | D170: 凯里市 | E170: 初中 | F170: 语文 | G170: 69.5 | H170: 50% | I170: 84.67 | J170: 50% | K170: 77.09
A171: 169 | B171: 程玲 | C171: 2311030108B37 | D171: 凯里市 | E171: 初中 | F171: 语文 | G171: 69.5 | H171: 50% | I171: 90.67 | J171: 50% | K171: 80.09
A172: 170 | B172: 杨秀河 | C172: 2311030108B38 | D172: 凯里市 | E172: 初中 | F172: 语文 | G172: 69 | H172: 50% | I172: 86 | J172: 50% | K172: 77.50
A173: 171 | B173: 张鑫 | C173: 2311030108B39 | D173: 凯里市 | E173: 初中 | F173: 语文 | G173: 68 | H173: 50% | I173: 86 | J173: 50% | K173: 77.00
A174: 172 | B174: 田晓秋 | C174: 2311030108B40 | D174: 凯里市 | E174: 初中 | F174: 语文 | G174: 68 | H174: 50% | I174: 87 | J174: 50% | K174: 77.50
A175: 173 | B175: 黄峰 | C175: 2311030217B31 | D175: 凯里市 | E175: 初中 | F175: 数学 | G175: 74.5 | H175: 50% | I175: 83.67 | J175: 50% | K175: 79.09
A176: 174 | B176: 彭启明 | C176: 2311030217B32 | D176: 凯里市 | E176: 初中 | F176: 数学 | G176: 67 | H176: 50% | I176: 75.67 | J176: 50% | K176: 71.34
A177: 175 | B177: 熊钰澜 | C177: 2311030217B33 | D177: 凯里市 | E177: 初中 | F177: 数学 | G177: 66 | H177: 50% | I177: 78.67 | J177: 50% | K177: 72.34
A178: 176 | B178: 孙黔蕾 | C178: 2311030323A01 | D178: 凯里市 | E178: 初中 | F178: 英语 | G178: 84 | H178: 50% | I178: 84.17 | J178: 50% | K178: 84.09
A179: 177 | B179: 石宇晨 | C179: 2311030323A02 | D179: 凯里市 | E179: 初中 | F179: 英语 | G179: 83.5 | H179: 50% | I179: 86.67 | J179: 50% | K179: 85.09
A180: 178 | B180: 杨倩 | C180: 2311030323A03 | D180: 凯里市 | E180: 初中 | F180: 英语 | G180: 81 | H180: 50% | I180: 88.67 | J180: 50% | K180: 84.84
A181: 179 | B181: 杨杰 | C181: 2311030323A04 | D181: 凯里市 | E181: 初中 | F181: 英语 | G181: 74.5 | H181: 50% | I181: 83.67 | J181: 50% | K181: 79.09
A182: 180 | B182: 吴晓芬 | C182: 2311030323A05 | D182: 凯里市 | E182: 初中 | F182: 英语 | G182: 74 | H182: 50% | I182: 82.67 | J182: 50% | K182: 78.34
A183: 181 | B183: 高苹 | C183: 2311030323A06 | D183: 凯里市 | E183: 初中 | F183: 英语 | G183: 71.5 | H183: 50% | I183: 84.83 | J183: 50% | K183: 78.17
A184: 182 | B184: 王红花 | C184: 2311030323A07 | D184: 凯里市 | E184: 初中 | F184: 英语 | G184: 70 | H184: 50% | I184: 86.33 | J184: 50% | K184: 78.17
A185: 183 | B185: 龙晓琴 | C185: 2311030323A08 | D185: 凯里市 | E185: 初中 | F185: 英语 | G185: 69.5 | H185: 50% | I185: 85.67 | J185: 50% | K185: 77.59
A186: 184 | B186: 韦红珍 | C186: 2311030323A09 | D186: 凯里市 | E186: 初中 | F186: 英语 | G186: 69.5 | H186: 50% | I186: 84.33 | J186: 50% | K186: 76.92
A187: 185 | B187: 张雅雯 | C187: 2311030323A10 | D187: 凯里市 | E187: 初中 | F187: 英语 | G187: 69 | H187: 50% | I187: 79.33 | J187: 50% | K187: 74.17
A188: 186 | B188: 张洪美 | C188: 2311030323A11 | D188: 凯里市 | E188: 初中 | F188: 英语 | G188: 69 | H188: 50% | I188: 81 | J188: 50% | K188: 75.00
A189: 187 | B189: 杨淋惠 | C189: 2311030323A12 | D189: 凯里市 | E189: 初中 | F189: 英语 | G189: 68.5 | H189: 50% | I189: 80.67 | J189: 50% | K189: 74.59
A190: 188 | B190: 万涛 | C190: 2311030425B29 | D190: 凯里市 | E190: 初中 | F190: 物理 | G190: 75 | H190: 50% | I190: 86.03 | J190: 50% | K190: 80.52
A191: 189 | B191: 余金美 | C191: 2311030425B30 | D191: 凯里市 | E191: 初中 | F191: 物理 | G191: 67 | H191: 50% | I191: 80.6 | J191: 50% | K191: 73.80
A192: 190 | B192: 潘洪飞 | C192: 2311030425B31 | D192: 凯里市 | E192: 初中 | F192: 物理 | G192: 64 | H192: 50% | I192: 83.57 | J192: 50% | K192: 73.79
A193: 191 | B193: 石丽娟 | C193: 2311030526B29 | D193: 凯里市 | E193: 初中 | F193: 化学 | G193: 70.5 | H193: 50% | I193: 77.6 | J193: 50% | K193: 74.05
A194: 192 | B194: 杨桧 | C194: 2311030526B30 | D194: 凯里市 | E194: 初中 | F194: 化学 | G194: 70 | H194: 50% | I194: 81.43 | J194: 50% | K194: 75.72
A195: 193 | B195: 张凤 | C195: 2311030526B31 | D195: 凯里市 | E195: 初中 | F195: 化学 | G195: 69.5 | H195: 50% | I195: 78.07 | J195: 50% | K195: =G195*H195+I195*J195 -> 73.79
A196: 194 | B196: 梁洪熙 | C196: 2311030526B32 | D196: 凯里市 | E196: 初中 | F196: 化学 | G196: 67.5 | H196: 50% | I196: 82.8 | J196: 50% | K196: 75.15
A197: 195 | B197: 吴松平 | C197: 2311030526B33 | D197: 凯里市 | E197: 初中 | F197: 化学 | G197: 66.5 | H197: 50% | I197: 74.93 | J197: 50% | K197: 70.72
A198: 196 | B198: 余海燕 | C198: 2311030526B34 | D198: 凯里市 | E198: 初中 | F198: 化学 | G198: 65 | H198: 50% | I198: 82.6 | J198: 50% | K198: 73.80
A199: 197 | B199: 刘雪梅 | C199: 2311030627A01 | D199: 凯里市 | E199: 初中 | F199: 生物 | G199: 64 | H199: 50% | I199: 0 | J199: 50% | K199: 32.00 | L199: 面试缺考
A200: 198 | B200: 唐柱住 | C200: 2311030627A02 | D200: 凯里市 | E200: 初中 | F200: 生物 | G200: 60 | H200: 50% | I200: 84.1 | J200: 50% | K200: 72.05
... 2579 more rows
